bitfinex-derivatives/quotes_SOLF0:USTF0_20241105
["timestamp","ask_amount","ask_price","bid_price","bid_amount"]
[1730817664907,19.77515782,166.72,166.62,4.96]
[1730817665119,19.77515782,166.72,166.67,2.1006]
[1730817665715,2.1002,166.71,166.67,2.1006]
[1730817665915,19.77515782,166.72,166.62,4.96]
[1730817666321,1.0,166.74,166.62,23.44215782]
[1730817666715,2.1,166.73,166.62,23.44215782]
[1730817667019,2.1,166.73,166.69,2.1003]
[1730817667224,18.48215782,166.75,166.62,23.44215782]
[1730817667408,5.2908,166.79,166.62,23.44215782]
[1730817667409,18.48215782,166.78,166.62,23.44215782]
[1730817667811,2.0996,166.76,166.65,18.48215782]
[1730817668215,0.3308,166.79,166.62,4.96]
[1730817668216,0.3308,166.79,166.68,18.48215782]
[1730817668412,0.3308,166.79,166.69,6.3515]
[1730817668611,0.3308,166.79,166.69,7.6571]
[1730817669213,2.0995,166.77,166.72,2.1]
[1730817669413,2.0995,166.77,166.69,2.6971]
[1730817669611,0.3308,166.79,166.69,7.6571]
[1730817669817,0.3308,166.79,166.69,2.6971]
[1730817670012,18.48215782,166.77,166.69,2.6971]
[1730817670213,2.1,166.73,166.68,2.1004]
[1730817670412,18.48215782,166.77,166.68,2.1004]
[1730817670621,18.48215782,166.77,166.64,4.96]
[1730817670822,2.0999,166.73,166.69,2.1003]
[1730817671407,4.96,166.78,166.66,2.1008]
[1730817671408,2.1004,166.7,166.66,2.1008]
[1730817671608,18.48215782,166.72,166.61,4.96]
[1730817671609,18.48215782,166.69,166.61,4.96]
[1730817671815,1.312,166.71,166.61,4.96]
[1730817672219,2.1005,166.69,166.64,2.1009]
[1730817672411,2.1005,166.69,166.61,4.96]
[1730817672621,1.312,166.71,166.61,4.96]
[1730817673017,1.3434,166.7,166.61,4.96]
[1730817673413,2.1008,166.66,166.62,2.1012]
[1730817673713,1.3434,166.7,166.62,2.1012]
[1730817673920,1.3434,166.7,166.61,4.96]
[1730817674117,1.3434,166.7,166.6,1.2677]
[1730817674726,2.1007,166.67,166.6,1.2677]
[1730817674910,18.48215782,166.67,166.56,1.2337]
[1730817675315,2.101,166.64,166.59,2.1016]
[1730817675512,18.48215782,166.67,166.55,48.18]
[1730817675914,1.3434,166.7,166.55,66.66215782]
[1730817676314,18.48215782,166.69,166.55,66.66215782]
[1730817676817,18.48215782,166.6,166.46,18.48215782]
[1730817677016,18.48215782,166.6,166.47,1.3688]
[1730817677017,1.3701,166.59,166.47,1.3688]
[1730817677922,1.3701,166.59,166.45,7.4552]
[1730817677923,18.48215782,166.58,166.44,18.48215782]
[1730817678218,18.48215782,166.58,166.45,2.7222]
[1730817678219,4.96,166.58,166.45,2.7222]
[1730817678429,1.3701,166.59,166.47,18.48215782]
[1730817678926,1.3701,166.59,166.5,2.1027]
[1730817679117,1.3701,166.59,166.47,18.48215782]
[1730817679625,3.4718,166.59,166.55,2.1021]
[1730817680127,3.4718,166.59,166.54,2.1022]
[1730817680330,2.1018,166.58,166.54,2.1022]
[1730817680527,1.3701,166.59,166.47,18.48215782]
[1730817680722,1.3701,166.59,166.53,2.1023]
[1730817680931,1.3701,166.59,166.47,18.48215782]
[1730817681132,1.3701,166.59,166.45,1.3688]
[1730817681331,18.48215782,166.58,166.45,1.3688]
[1730817681628,4.96,166.57,166.45,1.3688]
[1730817681824,18.48215782,166.55,166.45,1.3688]
[1730817682021,2.1032,166.47,166.37,23.44215782]
[1730817682327,2.1032,166.47,166.42,2.1037]
[1730817682528,7.6269,166.51,166.37,26.05135782]
[1730817682824,19.48215782,166.57,166.37,26.05135782]
[1730817682825,5.96,166.57,166.45,18.48215782]
[1730817683024,3.9763,166.62,166.49,18.48215782]
[1730817683533,2.6939,166.62,166.51,18.48215782]
[1730817684427,2.6939,166.62,166.58,2.1017]
[1730817684730,18.48215782,166.69,166.55,18.48215782]
[1730817684921,2.1009,166.66,166.59,2.1016]
[1730817685128,21.05875782,166.69,166.56,2.6747]
[1730817685333,18.48215782,166.66,166.56,2.6747]
[1730817685530,2.1011,166.64,166.6,2.1015]
[1730817685834,2.5766,166.69,166.58,18.48215782]
[1730817686135,2.5766,166.69,166.64,2.1009]
[1730817686328,2.5766,166.69,166.58,18.48215782]
[1730817686729,2.1001,166.72,166.58,18.48215782]
[1730817687132,18.48215782,166.74,166.64,2.1009]
[1730817687337,4.92,166.76,166.58,18.48215782]
[1730817687539,18.48215782,166.7,166.58,18.48215782]
[1730817688032,2.1006,166.68,166.6,2.1015]
[1730817688228,18.48215782,166.74,166.6,4.92]
[1730817688533,21.10155782,166.74,166.61,2.1013]
[1730817688737,18.48215782,166.72,166.6,4.92]
[1730817688934,1.2875,166.71,166.6,4.92]
[1730817689230,18.48215782,166.69,166.6,4.92]
[1730817689436,18.48215782,166.69,166.57,1.2349]
[1730817690026,5.92,166.73,166.57,1.2349]
[1730817690027,1.0,166.73,166.57,1.2349]
[1730817690236,2.1006,166.68,166.6,2.1014]
[1730817690439,2.1006,166.68,166.57,1.2349]
[1730817690835,18.48215782,166.71,166.57,1.2349]
[1730817691431,18.48215782,166.71,166.6,2.1015]
[1730817691837,18.48215782,166.71,166.57,1.2349]
[1730817692033,18.48215782,166.68,166.57,1.2349]
[1730817692834,18.48215782,166.68,166.56,2.6747]
[1730817692835,23.40215782,166.68,166.56,1.3567]
[1730817693041,18.48215782,166.65,166.56,1.3567]
[1730817693240,2.1015,166.61,166.56,1.3567]
[1730817693441,1.3028,166.64,166.56,1.3567]
[1730817694134,1.3028,166.64,166.54,7.0223]
[1730817694336,1.3028,166.64,166.54,4.92]
[1730817694535,1.3028,166.64,166.53,2.1023]
[1730817694749,1.3028,166.64,166.52,1.2788]
[1730817694945,18.48215782,166.65,166.52,1.2788]
[1730817695645,18.48215782,166.63,166.52,1.2788]
[1730817695848,2.1017,166.59,166.52,1.2788]
[1730817696051,4.92,166.62,166.55,2.1021]
[1730817696240,4.92,166.62,166.52,1.2788]
[1730817696541,18.48215782,166.71,166.6,2.1014]
[1730817696745,18.48215782,166.71,166.58,4.92]
[1730817696940,2.1006,166.68,166.58,4.92]
[1730817697258,18.48215782,166.71,166.58,4.92]
[1730817697749,2.1009,166.66,166.6,2.1014]
[1730817698142,18.48215782,166.71,166.6,2.1014]
[1730817698343,2.1008,166.66,166.61,2.1014]
[1730817698548,2.1008,166.66,166.58,4.92]
[1730817698846,18.48215782,166.71,166.58,23.40215782]
[1730817699047,2.1008,166.67,166.62,2.1012]
[1730817699441,18.48215782,166.71,166.58,23.40215782]
[1730817699743,18.48215782,166.71,166.58,4.92]
[1730817700245,1.0,166.7,166.58,4.92]
[1730817700452,18.48215782,166.68,166.54,4.92]
[1730817701247,18.48215782,166.68,166.56,2.1019]
[1730817701447,4.92,166.67,166.56,2.1019]
[1730817701649,2.1014,166.62,166.56,2.1019]
[1730817701947,4.92,166.67,166.53,4.92]
[1730817701948,18.48215782,166.65,166.53,4.92]
[1730817702148,2.1019,166.58,166.52,1.2788]
[1730817702348,1.0,166.7,166.53,18.48215782]
[1730817702546,22.41365782,166.69,166.53,18.48215782]
[1730817702945,18.48215782,166.66,166.53,18.48215782]
[1730817703245,2.1014,166.61,166.56,2.102]
[1730817703850,2.1019,166.58,166.52,3.3812]
[1730817704038,18.48215782,166.63,166.52,1.2788]
[1730817704347,18.48215782,166.6,166.49,2.5893]
[1730817704551,2.628,166.59,166.49,2.1028]
[1730817704767,4.0045,166.59,166.47,4.92]
[1730817704953,18.48215782,166.57,166.47,4.92]
[1730817705148,18.48215782,166.55,166.42,4.92]
[1730817705450,4.92,166.56,166.42,23.40215782]
[1730817705648,2.1019,166.57,166.5,2.1028]
[1730817705947,2.1019,166.57,166.45,18.48215782]
[1730817705948,4.0045,166.59,166.45,18.48215782]
[1730817706151,2.1021,166.56,166.5,2.1027]
[1730817706347,4.0045,166.59,166.46,2.561]
[1730817707049,18.48215782,166.57,166.46,2.561]
[1730817707354,2.1025,166.53,166.46,1.2686]
[1730817707555,4.0045,166.59,166.46,1.2686]
[1730817707849,18.48215782,166.57,166.46,1.2686]
[1730817708050,18.48215782,166.57,166.48,2.103]
[1730817708051,2.1023,166.54,166.48,2.103]
[1730817708350,18.48215782,166.57,166.46,1.2686]
[1730817708552,2.1021,166.56,166.5,2.1027]
[1730817708743,2.1021,166.56,166.46,1.2686]
[1730817709144,2.1016,166.6,166.54,2.1023]
[1730817709353,18.48215782,166.63,166.47,18.48215782]
[1730817709354,18.48215782,166.63,166.51,4.92]
[1730817710256,2.1015,166.6,166.54,2.1023]
[1730817710750,1.369,166.62,166.51,4.92]
[1730817710947,2.1019,166.57,166.52,2.1025]
[1730817711148,18.48215782,166.55,166.31,335.0]
[1730817711350,1.2704,166.56,166.42,3.7823]
[1730817711652,1.2704,166.56,166.44,18.48215782]
[1730817711851,1.2704,166.56,166.51,2.1025]
[1730817712355,1.2704,166.56,166.44,18.48215782]
[1730817712550,5.92,166.61,166.43,4.92]
[1730817712551,19.48215782,166.61,166.47,18.48215782]
[1730817712755,2.2704,166.61,166.47,18.48215782]
[1730817712951,2.2704,166.61,166.5,18.48215782]
[1730817713154,1.2704,166.61,166.51,8.8949]
[1730817713354,1.2704,166.61,166.52,2.1024]
[1730817713355,2.1019,166.57,166.52,2.1024]
[1730817713551,1.2704,166.61,166.51,7.6253]
[1730817713857,2.1018,166.59,166.53,2.1023]
[1730817714052,1.2704,166.61,166.51,4.92]
[1730817714251,4.92,166.68,166.51,4.92]
[1730817714455,2.1012,166.63,166.57,2.1019]
[1730817714762,18.48215782,166.64,166.52,2.6368]
[1730817715056,18.48215782,166.61,166.52,4.7393]
[1730817715352,18.48215782,166.64,166.52,1.3648]
[1730817715562,2.1021,166.56,166.51,4.92]
[1730817715750,18.48215782,166.6,166.51,4.92]
[1730817716657,2.1019,166.58,166.52,2.1024]
[1730817716857,18.48215782,166.6,166.52,2.1024]
[1730817717744,18.48215782,166.6,166.51,4.92]
[1730817717945,18.48215782,166.57,166.44,22.45645782]
[1730817718148,18.48215782,166.57,166.45,5.02]
[1730817718353,20.58415782,166.57,166.51,2.1026]
[1730817718957,18.48215782,166.6,166.44,3.9743]
[1730817719259,2.1019,166.57,166.52,2.1024]
[1730817719653,18.48215782,166.54,166.44,2.5815]
[1730817719848,18.48215782,166.54,166.44,1.3095]
[1730817720051,1.3085,166.53,166.44,1.3095]
[1730817720250,2.1029,166.5,166.45,2.1033]
[1730817720461,1.3085,166.53,166.44,1.3095]
[1730817720953,1.3085,166.53,166.47,2.1031]
[1730817721159,1.3085,166.53,166.44,1.3095]
[1730817721748,18.48215782,166.52,166.42,5.02]
[1730817722550,1.3085,166.53,166.5,2.1027]
[1730817722751,1.3024,166.55,166.43,1.3745]
[1730817723153,1.3024,166.55,166.51,2.1027]
[1730817723554,2.1018,166.58,166.51,2.1026]
[1730817723750,18.48215782,166.6,166.49,5.02]
[1730817723958,2.5875,166.62,166.52,18.48215782]
[1730817724166,2.101,166.65,166.59,2.1016]
[1730817724456,18.48215782,166.67,166.53,1.2912]
[1730817724457,18.48215782,166.67,166.56,5.02]
[1730817724857,18.48215782,166.64,166.56,5.02]
[1730817725052,18.48215782,166.64,166.53,6.3112]
[1730817725360,18.48215782,166.62,166.53,1.2912]
[1730817725558,2.1013,166.62,166.57,2.1019]
[1730817725754,2.5875,166.63,166.53,1.2912]
[1730817726063,2.5875,166.63,166.6,2.1015]
[1730817726064,1.272,166.63,166.6,2.1015]
[1730817726260,1.272,166.63,166.53,1.2912]
[1730817727353,2.1013,166.62,166.53,1.2912]
[1730817727759,2.1013,166.62,166.56,2.1019]
[1730817727967,2.1013,166.62,166.53,1.2912]
[1730817728159,1.272,166.63,166.53,1.2912]
[1730817728361,2.1013,166.62,166.57,2.1019]
[1730817728667,1.272,166.63,166.53,1.2912]
[1730817728964,18.48215782,166.71,166.55,18.48215782]
[1730817729158,19.81665782,166.71,166.55,18.48215782]
[1730817729460,2.1005,166.68,166.63,2.1011]
[1730817729763,1.3345,166.71,166.6,5.02]
[1730817730064,1.3345,166.71,166.61,1.2836]
[1730817730367,78.63612,166.71,166.61,2.6489]
[1730817730965,77.30162,166.71,166.68,2.1005]
[1730817731760,79.40182,166.71,166.64,2.101]
[1730817731966,77.30162,166.71,166.61,2.6489]
[1730817732362,77.30162,166.71,166.64,2.101]
[1730817732571,77.30162,166.71,166.61,2.6489]
[1730817733064,77.30162,166.71,166.6,23.50215782]
[1730817733664,95.78377782,166.71,166.6,5.02]
[1730817734164,2.1007,166.67,166.62,2.1012]
[1730817734772,95.78377782,166.71,166.6,5.02]
[1730817735172,95.78377782,166.71,166.56,1.2955]
[1730817735173,18.48215782,166.68,166.56,5.02]
[1730817735374,2.1012,166.63,166.58,2.1017]
[1730817735571,2.6307,166.67,166.56,5.02]
[1730817735871,2.1008,166.66,166.61,2.1013]
[1730817736059,2.6307,166.67,166.56,5.02]
[1730817736465,77.30162,166.71,166.59,18.48215782]
[1730817737062,79.40182,166.71,166.59,18.48215782]
[1730817737264,79.40182,166.71,166.66,2.1007]
[1730817737469,79.40182,166.71,166.63,5.02]
[1730817737861,77.30162,166.71,166.63,5.02]
[1730817738675,77.30162,166.71,166.62,18.48215782]
[1730817738877,77.30162,166.71,166.63,5.02]
[1730817739574,77.30162,166.71,166.7,2.1003]
[1730817741862,77.30162,166.71,166.7,7.1203]
[1730817742775,75.20582,166.71,166.7,7.1203]
[1730817743276,73.16852,166.71,166.7,7.1203]
[1730817745174,73.16852,166.71,166.7,2.1003]
[1730817745378,73.16852,166.71,166.7,6.9603]
[1730817746773,73.16852,166.71,166.7,6.9403]
[1730817747879,73.16852,166.71,166.7,4.84]
[1730817748172,73.16852,166.71,166.63,21.10635782]
[1730817748377,73.16852,166.71,166.64,4.84]
[1730817748578,73.16852,166.71,166.68,2.1005]
[1730817748971,73.16852,166.71,166.64,4.84]
[1730817749170,73.16852,166.71,166.69,2.1004]
[1730817749978,75.26872,166.71,166.67,6.9406]
[1730817750176,75.26872,166.71,166.57,1.2811]
[1730817750177,73.16852,166.71,166.6,18.48215782]
[1730817750478,4.0303,166.7,166.61,4.84]
[1730817750680,4.0303,166.7,166.6,18.48215782]
[1730817750873,4.0303,166.7,166.61,4.84]
[1730817751179,2.1004,166.69,166.61,4.84]
[1730817751485,4.0303,166.7,166.61,4.84]
[1730817751781,4.0303,166.7,166.68,2.1004]
[1730817752082,4.0303,166.7,166.61,4.84]
[1730817752274,6.1306,166.7,166.61,4.84]
[1730817752679,4.0303,166.7,166.61,4.84]
[1730817753382,4.0303,166.7,166.57,18.48215782]
[1730817753582,4.0303,166.7,166.58,4.84]
[1730817753879,2.1014,166.62,166.58,4.84]
[1730817754081,2.1014,166.62,166.55,18.48215782]
[1730817754082,18.48215782,166.66,166.55,4.84]
[1730817754272,1.2863,166.61,166.55,4.84]
[1730817754475,1.2863,166.61,166.53,4.84]
[1730817754476,1.3573,166.6,166.53,4.84]
[1730817755276,1.3573,166.6,166.55,2.1021]
[1730817755677,1.3573,166.6,166.53,4.84]
[1730817756376,2.6393,166.6,166.53,4.84]
[1730817756979,1.2863,166.61,166.55,18.48215782]
[1730817757288,73.16852,166.71,166.55,18.48215782]
[1730817757289,3.9132,166.7,166.55,18.48215782]
[1730817757977,18.48215782,166.69,166.55,18.48215782]
[1730817758187,18.48215782,166.66,166.53,4.84]
[1730817758482,2.1013,166.62,166.57,2.1019]
[1730817758783,18.48215782,166.66,166.53,4.84]
[1730817759076,2.5559,166.61,166.53,4.84]
[1730817760883,2.5559,166.61,166.58,2.1017]
[1730817761186,2.5559,166.61,166.53,4.84]
[1730817761379,2.5559,166.61,166.59,2.1016]
[1730817761579,18.48215782,166.69,166.55,18.48215782]
[1730817761779,2.6125,166.68,166.55,18.48215782]
[1730817762579,2.1011,166.64,166.55,18.48215782]
[1730817763084,2.6125,166.68,166.59,2.1016]
[1730817763288,2.1012,166.63,166.59,2.1016]
[1730817763887,2.6125,166.68,166.55,18.48215782]
[1730817764086,2.6125,166.68,166.58,2.1018]
[1730817764285,2.6125,166.68,166.54,4.86]
[1730817764490,2.6125,166.68,166.52,61.66215782]
[1730817764680,18.48215782,166.66,166.57,2.1019]
[1730817765080,2.1011,166.64,166.57,2.1019]
[1730817765279,18.48215782,166.66,166.58,2.1017]
[1730817765887,2.1014,166.62,166.58,2.1017]
[1730817766489,18.48215782,166.66,166.53,4.86]
[1730817766685,18.48215782,166.66,166.59,2.1016]
[1730817767493,18.48215782,166.66,166.53,4.86]
[1730817767994,2.1014,166.62,166.58,2.1017]
[1730817768395,18.48215782,166.66,166.58,2.1017]
[1730817768588,18.48215782,166.66,166.52,61.66215782]
[1730817768992,18.48215782,166.63,166.51,4.86]
[1730817769190,4.86,166.62,166.53,2.1024]
[1730817769388,4.86,166.62,166.49,18.48215782]
[1730817769794,2.1018,166.58,166.49,18.48215782]
[1730817769989,18.48215782,166.66,166.52,18.48215782]
[1730817770186,2.6125,166.68,166.55,18.48215782]
[1730817771498,2.1009,166.65,166.55,18.48215782]
[1730817772091,2.1009,166.65,166.6,2.1015]
[1730817772303,2.1009,166.65,166.55,18.48215782]
[1730817772803,2.1008,166.66,166.61,2.1013]
[1730817773208,2.101,166.64,166.6,2.1015]
[1730817773498,2.6125,166.68,166.6,2.1015]
[1730817773797,2.1012,166.63,166.58,2.1017]
[1730817774092,1.335,166.67,166.55,18.48215782]
[1730817774287,2.1015,166.6,166.56,2.1019]
[1730817774483,18.48215782,166.66,166.52,23.04215782]
[1730817774984,4.56,166.65,166.52,23.04215782]
[1730817775185,4.56,166.66,166.55,18.48215782]
[1730817775390,2.1011,166.64,166.59,2.1016]
[1730817775591,5.895,166.67,166.59,2.1016]
[1730817776003,2.1011,166.64,166.59,2.1016]
[1730817776487,5.895,166.67,166.59,2.1016]
[1730817776690,2.1009,166.65,166.6,2.1014]
[1730817776994,5.895,166.67,166.6,2.1014]
[1730817777302,2.101,166.65,166.6,2.1014]
[1730817777494,2.101,166.65,166.55,18.48215782]
[1730817777495,2.101,166.65,166.61,2.1014]
[1730817777998,2.1014,166.61,166.57,2.1019]
[1730817778192,18.48215782,166.66,166.52,23.04215782]
[1730817778794,2.1014,166.62,166.56,2.102]
[1730817778995,18.48215782,166.66,166.52,23.04215782]
[1730817779395,2.1013,166.62,166.57,2.1019]
[1730817779992,2.1011,166.64,166.56,2.102]
[1730817780200,18.48215782,166.66,166.52,23.04215782]
[1730817780397,23.04215782,166.66,166.52,23.04215782]
[1730817780594,18.48215782,166.64,166.58,2.1017]
[1730817780797,18.48215782,166.64,166.48,23.04215782]
[1730817780994,18.48215782,166.64,166.51,18.48215782]
[1730817781193,18.48215782,166.64,166.48,4.56]
[1730817781194,1.0,166.65,166.53,18.48215782]
[1730817781895,2.1011,166.64,166.58,2.1017]
[1730817782096,1.0,166.65,166.53,18.48215782]
[1730817782498,2.1014,166.61,166.56,2.1019]
[1730817782697,2.1014,166.61,166.53,18.48215782]
[1730817782906,5.56,166.65,166.53,18.48215782]
[1730817783197,7.6609,166.65,166.53,18.48215782]
[1730817783402,1.0,166.65,166.54,4.56]
[1730817783702,5.895,166.67,166.54,7.2337]
[1730817783898,24.37715782,166.67,166.54,7.2337]
[1730817784198,2.1015,166.6,166.52,4.56]
[1730817784405,2.1015,166.6,166.51,4.56]
[1730817784598,24.37715782,166.67,166.5,18.48215782]
[1730817784599,2.1017,166.59,166.54,2.1022]
[1730817784901,1.3252,166.59,166.5,4.56]
[1730817785097,2.1019,166.57,166.53,2.1024]
[1730817785305,1.3252,166.59,166.53,2.1024]
[1730817785504,1.3252,166.59,166.5,4.56]
[1730817785699,2.1018,166.58,166.53,2.1023]
[1730817786297,2.1018,166.58,166.5,4.56]
[1730817786494,1.3252,166.59,166.5,23.04215782]
[1730817788195,2.1018,166.58,166.53,2.1023]
[1730817788399,2.1018,166.58,166.5,4.56]
[1730817788802,2.1018,166.58,166.53,2.1023]
[1730817789105,2.1018,166.58,166.5,4.56]
[1730817789301,1.3252,166.59,166.42,37.3914837]
[1730817789498,18.48215782,166.55,166.43,2.63535188]
[1730817789699,18.48215782,166.55,166.42,1.3704]
[1730817790000,2.1024,166.53,166.48,2.1029]
[1730817790203,18.48215782,166.55,166.43,4.56]
[1730817791200,2.1026,166.52,166.43,4.56]
[1730817791404,2.1026,166.52,166.42,1.3704]
[1730817791599,18.48215782,166.52,166.37,2.67039784]
[1730817791800,2.6327,166.51,166.4,18.48215782]
[1730817792105,18.48215782,166.55,166.41,3.72621614]
[1730817792401,18.48215782,166.55,166.42,18.48215782]
[1730817792598,18.48215782,166.55,166.43,4.56]
[1730817792798,18.48215782,166.55,166.46,2.1032]
[1730817792799,2.1027,166.51,166.46,2.1032]
[1730817793606,2.1027,166.51,166.41,7.1825]
[1730817793607,18.48215782,166.55,166.41,4.56]
[1730817793805,18.48215782,166.52,166.41,4.56]
[1730817794003,18.48215782,166.52,166.37,23.04215782]
[1730817794206,18.48215782,166.52,166.38,1.10388704]
[1730817794604,2.1028,166.5,166.38,1.10388704]
[1730817794814,18.48215782,166.52,166.38,1.10388704]
[1730817795206,2.6327,166.57,166.36,1.3899]
[1730817795207,18.48215782,166.49,166.36,1.3899]
[1730817795403,18.48215782,166.46,166.35,1.2613]
[1730817795609,25.14545782,166.46,166.37,2.1044]
[1730817795801,23.04215782,166.46,166.32,1.3017]
[1730817796005,4.56,166.46,166.34,18.48215782]
[1730817796405,3.9335,166.48,166.37,18.48215782]
[1730817796602,8.4935,166.48,166.37,18.48215782]
[1730817796912,8.4935,166.48,166.42,2.1038]
[1730817797114,8.4935,166.48,166.37,18.48215782]
[1730817797310,2.1034,166.46,166.38,2.1042]
[1730817797506,23.04215782,166.47,166.32,18.48215782]
[1730817798015,23.04215782,166.47,166.33,4.56]
[1730817798213,2.1033,166.46,166.39,2.1041]
[1730817799311,2.1038,166.43,166.36,2.1045]
[1730817799515,18.48215782,166.44,166.3,7.2177]
[1730817800108,2.104,166.41,166.34,2.1048]
[1730817800308,2.104,166.41,166.3,7.2177]
[1730817800703,18.48215782,166.44,166.3,7.2177]
[1730817800704,1.3106,166.4,166.35,2.1047]
[1730817801417,2.1042,166.39,166.3,7.2177]
[1730817801617,18.48215782,166.38,166.24,18.48215782]
[1730817801819,19.82055782,166.38,166.25,1.2603]
[1730817802413,19.82055782,166.38,166.34,2.1047]
[1730817802726,1.3931,166.39,166.27,18.48215782]
[1730817803611,1.3106,166.4,166.28,1.3883]
[1730817803806,1.3106,166.4,166.36,2.1045]
[1730817804016,21.19425782,166.44,166.3,4.46]
[1730817804218,4.46,166.43,166.3,4.46]
[1730817804517,21.19425782,166.44,166.3,4.46]
[1730817804713,21.19425782,166.44,166.3,22.94215782]
[1730817804913,23.29785782,166.44,166.38,2.1042]
[1730817805118,23.29785782,166.44,166.3,22.94215782]
[1730817805119,21.19425782,166.44,166.3,22.94215782]
[1730817805316,21.19425782,166.44,166.4,2.104]
[1730817805915,21.19425782,166.44,166.3,22.94215782]
[1730817806114,1.0,166.45,166.32,18.48215782]
[1730817806313,1.3969,166.48,166.45,2.1033]
[1730817806621,1.3969,166.48,166.38,4.46]
[1730817807211,1.269,166.5,166.38,4.46]
[1730817807414,1.269,166.5,166.47,2.1032]
[1730817807612,21.16175782,166.54,166.4,18.48215782]
[1730817808018,19.86565782,166.54,166.44,2.1035]
[1730817808224,19.86565782,166.54,166.44,4.46]
[1730817808725,1.3835,166.54,166.44,4.46]
[1730817808924,18.48215782,166.57,166.44,4.46]
[1730817809126,20.58405782,166.57,166.51,2.1026]
[1730817809318,18.48215782,166.57,166.44,4.46]
[1730817809722,25.69065782,166.6,166.45,3.5485]
[1730817810031,25.69065782,166.6,166.46,18.48215782]
[1730817810227,25.69065782,166.6,166.45,3.5485]
[1730817810430,18.48215782,166.54,166.45,1.3339]
[1730817810628,20.58405782,166.57,166.48,2.103]
[1730817810826,18.48215782,166.57,166.45,1.3339]
[1730817811326,20.58415782,166.57,166.45,1.3339]
[1730817812536,18.48215782,166.57,166.45,1.3339]
[1730817813225,18.48215782,166.57,166.52,2.1024]
[1730817813827,18.48215782,166.57,166.45,1.3339]
[1730817814730,18.48215782,166.57,166.5,2.1027]
[1730817815334,18.48215782,166.57,166.45,1.3339]
[1730817815631,21.23065782,166.6,166.46,18.48215782]
[1730817816139,2.7485,166.6,166.54,2.1023]
[1730817818124,21.23065782,166.6,166.54,2.1023]
[1730817818730,23.33225782,166.6,166.54,2.1023]
[1730817818933,21.23065782,166.6,166.54,2.1023]
[1730817819121,18.48215782,166.57,166.5,2.1027]
[1730817819323,20.58405782,166.57,166.48,4.46]
[1730817820923,18.48215782,166.57,166.48,4.46]
[1730817821135,21.23065782,166.6,166.48,4.46]
[1730817821733,2.1017,166.59,166.48,4.46]
[1730817822236,18.48215782,166.58,166.48,4.46]
[1730817822632,2.7485,166.6,166.54,2.1023]
[1730817823138,2.7485,166.6,166.53,2.1024]
[1730817823338,2.1019,166.58,166.53,2.1024]
[1730817823545,20.58405782,166.58,166.53,2.1024]
[1730817823838,20.58405782,166.58,166.51,2.1026]
[1730817823839,2.1021,166.56,166.51,2.1026]
[1730817824041,18.48215782,166.58,166.47,4.46]
[1730817825037,20.58405782,166.58,166.52,2.1025]
[1730817825238,18.48215782,166.58,166.47,4.46]
[1730817825545,18.48215782,166.58,166.49,2.1029]
[1730817825734,18.48215782,166.58,166.47,4.46]
[1730817826234,20.58395782,166.58,166.54,2.1023]
[1730817826833,20.58395782,166.58,166.53,2.1024]
[1730817827437,91.42064782,166.55,166.35,4.2092]
[1730817827737,91.42064782,166.55,166.39,3.546]
[1730817827738,18.48215782,166.53,166.39,3.546]
[1730817827936,2.1028,166.5,166.4,4.46]
[1730817828135,1.31,166.52,166.4,4.46]
[1730817828740,1.31,166.52,166.41,4.46]
[1730817829139,1.31,166.52,166.48,2.1029]
[1730817829335,72.93849,166.55,166.41,4.46]
[1730817829336,72.93849,166.55,166.41,22.94215782]
[1730817829934,18.48215782,166.52,166.41,4.46]
[1730817830531,18.48215782,166.5,166.41,4.46]
[1730817830842,2.1029,166.49,166.44,2.1035]